fUSD/lending_fUSD_20260219
["ID","MTS","AMOUNT","RATE_DAILY","PERIOD"]
[405973417,1771487449807,-1164.0,0.00013195,2]
[405973418,1771487449816,-1275.0,0.00013195,2]
[405973419,1771487449826,-1209.0,0.00013195,2]
[405973420,1771487449835,-150.0,0.00013195,2]
[405973421,1771487449845,-413.0,0.00013195,2]
[405973422,1771487449855,-2453.0,0.00013195,2]
[405973423,1771487449865,-919.0,0.00013195,2]
[405973424,1771487449874,-1000.0,0.00013195,2]
[405973425,1771487449884,-150.0,0.00013198,2]
[405973426,1771487449893,-1000.0,0.00013201,2]
[405973427,1771487449903,-1000.0,0.00013202,2]
[405973428,1771487449912,-2189.17567554,0.00013205,2]
[405973429,1771487449922,-268.63179937,0.00013208,2]
[405973430,1771487449931,-1000.0,0.00013211,2]
[405973431,1771487449940,-150.0,0.00013211,2]
[405973432,1771487449952,-242.15909246,0.00013251,2]
[405973433,1771487449961,-1000.0,0.00013254,2]
[405973434,1771487449970,-1000.0,0.00013264,2]
[405973435,1771487449979,-5530.0,0.000133,3]
[405973436,1771487449989,-268.63179937,0.00013338,2]
[405973437,1771487449998,-1000.0,0.00013339,2]
[405973438,1771487450008,-28883.24864978,0.00013347,2]
[405973439,1771487450017,-150.0,0.00013354,2]
[405973440,1771487450026,-150.0,0.00013382,2]
[405973441,1771487450036,-150.0,0.00013409,2]
[405973442,1771487450045,-1000.0,0.0001341,2]
[405973443,1771487450054,-3240.0,0.00013425,2]
[405973444,1771487450064,-1000.0,0.00013425,2]
[405973445,1771487450074,-150.0,0.00013474,2]
[405973446,1771487450083,-1000.0,0.000135,2]
[405973447,1771487450092,-150.0,0.00013505,2]
[405973448,1771487450105,-150.0,0.00013506,2]
[405973449,1771487450114,-150.0,0.00013507,2]
[405973450,1771487450123,-1000.0,0.00013549,2]
[405973451,1771487450132,-150.0,0.00013552,2]
[405973452,1771487450143,-150.0,0.00013553,2]
[405973453,1771487450152,-1000.0,0.00013565,2]
[405973454,1771487450162,-150.0,0.00013569,2]
[405973455,1771487450173,-3110.02269176,0.00013574,2]
[405973456,1771487450183,-1000.0,0.0001359,2]
[405973457,1771487450192,-150.0,0.00013598,2]
[405973458,1771487450203,-150.0,0.00013599,2]
[405973459,1771487450212,-1000.0,0.000136,2]
[405973460,1771487450221,-5530.0,0.000136,5]
[405973461,1771487450231,-1000.0,0.0001362,2]
[405973462,1771487450240,-1000.0,0.00013621,2]
[405973463,1771487450249,-1000.0,0.00013626,2]
[405973464,1771487450259,-150.0,0.0001363,2]
[405973465,1771487450268,-150.0,0.0001364,2]
[405973466,1771487450277,-150.0,0.0001364,2]
[405973467,1771487450286,-150.0,0.0001364,2]
[405973468,1771487450296,-150.0,0.0001364,2]
[405973469,1771487450305,-150.0,0.0001364,2]
[405973470,1771487450315,-150.0,0.0001364,2]
[405973471,1771487450324,-150.0,0.0001364,2]
[405973472,1771487450333,-1000.0,0.00013665,2]
[405973473,1771487450342,-184.17,0.00013678,2]
[405973474,1771487450351,-150.0,0.0001368,2]
[405973475,1771487450361,-1000.0,0.00013691,2]
[405973476,1771487450372,-500.0,0.00013698,2]
[405973477,1771487450381,-541.91630413,0.00013698,2]
[405973478,1771487450391,-500.0,0.00013698,2]
[405973479,1771487450400,-500.0,0.00013698,2]
[405973480,1771487450410,-500.0,0.00013698,2]
[405973481,1771487450419,-500.0,0.00013698,2]
[405973482,1771487450428,-500.0,0.00013698,2]
[405973483,1771487450437,-500.0,0.00013698,2]
[405973484,1771487450448,-312.49323643,0.00013698,2]
[405973485,1771487450458,-518.38038418,0.00013698,2]
[405973486,1771487450468,-500.0,0.00013698,2]
[405973487,1771487450477,-500.0,0.00013698,2]
[405973488,1771487450486,-500.0,0.00013698,2]
[405973489,1771487450495,-500.0,0.00013698,2]
[405973490,1771487450504,-500.0,0.00013698,2]
[405973491,1771487450514,-500.0,0.00013698,2]
[405973492,1771487450525,-464.26092856,0.00013698,2]
[405973493,1771487450535,-500.0,0.00013698,2]
[405973494,1771487450546,-521.63324088,0.00013698,2]
[405973495,1771487450555,-500.0,0.00013698,2]
[405973496,1771487450565,-516.24696625,0.00013698,2]
[405973497,1771487450574,-500.0,0.00013698,2]
[405973498,1771487450584,-500.0,0.00013698,2]
[405973499,1771487450593,-500.0,0.00013698,2]
[405973500,1771487450603,-500.0,0.00013698,2]
[405973501,1771487450612,-500.0,0.00013698,2]
[405973502,1771487450621,-500.0,0.00013698,2]
[405973503,1771487450630,-500.0,0.00013698,2]
[405973504,1771487450639,-500.0,0.00013698,2]
[405973505,1771487450649,-326.88287902,0.00013698,2]
[405973506,1771487450658,-500.0,0.00013698,2]
[405973507,1771487450667,-500.0,0.00013698,2]
[405973508,1771487450677,-500.0,0.00013698,2]
[405973509,1771487450686,-500.0,0.00013698,2]
[405973510,1771487450696,-500.0,0.00013698,2]
[405973511,1771487450706,-500.0,0.00013698,2]
[405973512,1771487450715,-500.0,0.00013698,2]
[405973513,1771487450724,-500.0,0.00013698,2]
[405973514,1771487450733,-500.0,0.00013698,2]
[405973515,1771487450743,-392.14722517,0.00013698,2]
[405973516,1771487450752,-516.28,0.00013698,2]
[405973517,1771487450761,-516.28,0.00013698,2]
[405973518,1771487450770,-516.28,0.00013698,2]
[405973519,1771487450779,-516.28,0.00013698,2]
[405973520,1771487450788,-516.28,0.00013698,2]
[405973521,1771487450797,-516.28,0.00013698,2]
[405973522,1771487450806,-516.28,0.00013698,2]
[405973523,1771487450815,-516.28,0.00013698,2]
[405973524,1771487450824,-516.28,0.00013698,2]
[405973525,1771487450833,-516.28,0.00013698,2]
[405973526,1771487450842,-516.28,0.00013698,2]
[405973527,1771487450851,-516.28,0.00013698,2]
[405973528,1771487450859,-516.28,0.00013698,2]
[405973529,1771487450868,-516.28,0.00013698,2]
[405973530,1771487450878,-516.28,0.00013698,2]
[405973531,1771487450887,-516.28,0.00013698,2]
[405973532,1771487450896,-516.28,0.00013698,2]
[405973533,1771487450905,-437.07,0.00013698,2]
[405973534,1771487450915,-500.0,0.00013698,2]
[405973535,1771487450924,-500.0,0.00013698,2]
[405973536,1771487450934,-500.0,0.00013698,2]
[405973537,1771487450943,-500.0,0.00013698,2]
[405973538,1771487450953,-500.0,0.00013698,2]
[405973539,1771487450962,-500.0,0.00013698,2]
[405973540,1771487450971,-500.0,0.00013698,2]
[405973541,1771487450980,-500.0,0.00013698,2]
[405973542,1771487450990,-500.0,0.00013698,2]
[405973543,1771487450999,-500.0,0.00013698,2]
[405973544,1771487451009,-193.55777922,0.00013698,2]
[405973545,1771487451018,-500.0,0.00013698,2]
[405973546,1771487451027,-500.0,0.00013698,2]
[405973547,1771487451037,-586.46,0.00013698,2]
[405973548,1771487451046,-500.0,0.00013698,2]
[405973549,1771487451055,-500.0,0.00013698,2]
[405973550,1771487451064,-500.0,0.00013698,2]
[405973551,1771487451073,-500.0,0.00013698,2]
[405973552,1771487451082,-500.0,0.00013698,2]
[405973553,1771487451092,-500.0,0.00013698,2]
[405973554,1771487451106,-500.0,0.00013698,2]
[405973555,1771487451115,-500.0,0.00013698,2]
[405973556,1771487451124,-500.0,0.00013698,2]
[405973557,1771487451134,-500.0,0.00013698,2]
[405973558,1771487451144,-547.46824146,0.00013698,2]
[405973559,1771487451153,-500.0,0.00013698,2]
[405973560,1771487451162,-441.47371462,0.00013698,2]
[405973561,1771487451174,-500.0,0.00013699,2]
[405973562,1771487451183,-381.1,0.00013699,2]
[405973563,1771487451192,-16286.09,0.00013699,2]
[405973564,1771487451202,-184.18,0.00013699,2]
[405973565,1771487451211,-159.049643,0.00013699,2]
[405973566,1771487451220,-151.0,0.00013699,2]
[405973567,1771487451229,-151.0,0.00013699,2]
[405973568,1771487451238,-273.767874,0.00013699,2]
[405973569,1771487451248,-318.096556,0.00013699,2]
[405973570,1771487451257,-318.096556,0.00013699,2]
[405973571,1771487451266,-318.096556,0.00013699,2]
[405973572,1771487451275,-318.096556,0.00013699,2]
[405973573,1771487451284,-318.096556,0.00013699,2]
[405973574,1771487451293,-318.096556,0.00013699,2]
[405973575,1771487451302,-318.096556,0.00013699,2]
[405973576,1771487451312,-318.096556,0.00013699,2]
[405973577,1771487451321,-318.096556,0.00013699,2]
[405973578,1771487451330,-318.096556,0.00013699,2]
[405973579,1771487451338,-318.096556,0.00013699,2]
[405973580,1771487451347,-318.096556,0.00013699,2]
[405973581,1771487451356,-318.096556,0.00013699,2]
[405973582,1771487451365,-318.096556,0.00013699,2]
[405973583,1771487451374,-318.096556,0.00013699,2]
[405973584,1771487451384,-318.096556,0.00013699,2]
[405973585,1771487451393,-318.096556,0.00013699,2]
[405973586,1771487451402,-318.096556,0.00013699,2]
[405973587,1771487451412,-318.096556,0.00013699,2]
[405973588,1771487451423,-318.096562,0.00013699,2]
[405973589,1771487451433,-200.0,0.00013699,2]
[405973590,1771487451442,-163.61666701,0.00013699,2]
[405973591,1771487451452,-163.93641523,0.00013699,2]
[405973592,1771487451461,-500.0,0.00013699,2]
[405973593,1771487451470,-500.0,0.00013699,2]
[405973594,1771487451480,-277.86889033,0.00013699,2]
[405973595,1771487451490,-500.24648354,0.00013699,2]
[405973596,1771487451499,-500.0,0.00013699,2]
[405973597,1771487451509,-500.0,0.00013699,2]
[405973598,1771487451518,-500.0,0.00013699,2]
[405973599,1771487451527,-500.0,0.00013699,2]
[405973600,1771487451537,-160.95903381,0.00013699,2]
[405973601,1771487451546,-335.29804808,0.00013699,2]
[405973602,1771487451555,-162.01833843,0.00013699,2]
[405973603,1771487451565,-500.0,0.00013699,2]
[405973604,1771487451574,-503.23447762,0.00013699,2]
[405973605,1771487451584,-500.0,0.00013699,2]
[405973606,1771487451594,-500.0,0.00013699,2]
[405973607,1771487451603,-500.0,0.00013699,2]
[405973608,1771487451612,-500.0,0.00013699,2]
[405973609,1771487451621,-500.0,0.00013699,2]
[405973610,1771487451631,-500.0,0.00013699,2]
[405973611,1771487451640,-503.79470096,0.00013699,2]
[405973612,1771487451649,-209.44938753,0.00013699,2]
[405973613,1771487451659,-465.99795769,0.00013699,2]
[405973614,1771487451808,-500.0,0.00013699,2]
[405973615,1771487451822,-500.0,0.00013699,2]
[405973616,1771487451832,-337.4393481,0.00013699,2]
[405973617,1771487451841,-500.0,0.00013699,2]
[405973618,1771487451850,-500.0,0.00013699,2]
[405973619,1771487451859,-152.0,0.00013699,2]
[405973620,1771487451868,-152.0,0.00013699,2]
[405973621,1771487451877,-152.0,0.00013699,2]
[405973622,1771487451886,-500.0,0.00013699,2]
[405973623,1771487451895,-500.0,0.00013699,2]
[405973624,1771487451904,-500.0,0.00013699,2]
[405973625,1771487451913,-500.19719361,0.00013699,2]
[405973626,1771487451922,-500.0,0.00013699,2]
[405973627,1771487451932,-500.0,0.00013699,2]
[405973628,1771487451942,-500.95146285,0.00013699,2]
[405973629,1771487451952,-163.84269756,0.00013699,2]
[405973630,1771487451961,-160.74700191,0.00013699,2]
[405973631,1771487451970,-500.0,0.00013699,2]
[405973632,1771487451979,-500.0,0.00013699,2]
[405973633,1771487451988,-523.83521104,0.00013699,2]
[405973634,1771487451997,-160.99202719,0.00013699,2]
[405973635,1771487452006,-500.0,0.00013699,2]
[405973636,1771487452015,-500.0,0.00013699,2]
[405973637,1771487452024,-500.0,0.00013699,2]
[405973638,1771487452033,-500.0,0.00013699,2]
[405973639,1771487452043,-500.0,0.00013699,2]
[405973640,1771487452051,-308.35834573,0.00013699,2]
[405973641,1771487452061,-500.0,0.00013699,2]
[405973642,1771487452070,-161.93579231,0.00013699,2]
[405973643,1771487452079,-500.0,0.00013699,2]
[405973644,1771487452088,-500.0,0.00013699,2]
[405973645,1771487452101,-500.0,0.00013699,2]
[405973646,1771487452111,-500.0,0.00013699,2]
[405973647,1771487452120,-500.51023068,0.00013699,2]
[405973648,1771487452128,-500.0,0.00013699,2]
[405973649,1771487452138,-500.0,0.00013699,2]
[405973650,1771487452147,-471.10460984,0.00013699,2]
[405973651,1771487452156,-500.0,0.00013699,2]
[405973652,1771487452165,-162.04484954,0.00013699,2]
[405973653,1771487452174,-473.90820725,0.00013699,2]
[405973654,1771487452183,-500.0,0.00013699,2]
[405973655,1771487452191,-152.0,0.00013699,2]
[405973656,1771487452200,-152.0,0.00013699,2]
[405973657,1771487452213,-152.0,0.00013699,2]
[405973658,1771487452222,-152.0,0.00013699,2]
[405973659,1771487452232,-152.0,0.00013699,2]
[405973660,1771487452241,-500.0,0.00013699,2]
[405973661,1771487452250,-152.0,0.00013699,2]
[405973662,1771487452259,-152.0,0.00013699,2]
[405973663,1771487452268,-152.0,0.00013699,2]
[405973664,1771487452277,-152.0,0.00013699,2]
[405973665,1771487452287,-500.0,0.00013699,2]
[405973666,1771487452295,-152.0,0.00013699,2]
[405973667,1771487452305,-152.0,0.00013699,2]
[405973668,1771487452314,-152.0,0.00013699,2]
[405973669,1771487452323,-500.0,0.00013699,2]
[405973670,1771487452332,-152.0,0.00013699,2]
[405973671,1771487452341,-500.0,0.00013699,2]
[405973672,1771487452350,-152.0,0.00013699,2]
[405973673,1771487452359,-152.0,0.00013699,2]
[405973674,1771487452368,-152.0,0.00013699,2]
[405973675,1771487452378,-152.0,0.00013699,2]
[405973676,1771487452388,-500.4371677,0.00013699,2]
[405973677,1771487452408,-152.0,0.00013699,2]
[405973678,1771487452418,-152.0,0.00013699,2]
[405973679,1771487452428,-152.0,0.00013699,2]
[405973680,1771487452437,-152.0,0.00013699,2]
[405973681,1771487452447,-152.0,0.00013699,2]
[405973682,1771487452456,-152.0,0.00013699,2]
[405973683,1771487452465,-500.0,0.00013699,2]
[405973684,1771487452475,-500.0,0.00013699,2]
[405973685,1771487452483,-500.0,0.00013699,2]
[405973686,1771487452493,-500.0,0.00013699,2]
[405973687,1771487452502,-500.0,0.00013699,2]
[405973688,1771487452511,-150.09421025,0.000137,2]
[405973689,1771487452521,-7313.21,0.000137,2]
[405973690,1771487452530,-7313.21,0.000137,2]
[405973691,1771487452539,-1000.0,0.00013709,2]
[405973692,1771487452548,-249.73,0.00013709,2]
[405973693,1771487452558,-1000.0,0.00013724,2]
[405973694,1771487452567,-1000.0,0.00013724,2]
[405973695,1771487452576,-1000.0,0.00013729,2]
[405973696,1771487452585,-150.0,0.0001373,2]
[405973697,1771487452594,-150.0,0.00013731,2]
[405973698,1771487452603,-1000.0,0.00013733,2]
[405973699,1771487452613,-184.17,0.00013735,2]
[405973700,1771487452622,-500.0,0.00013754,2]
[405973701,1771487452631,-1000.0,0.00013762,2]
[405973702,1771487452640,-214.92,0.00013766,2]
[405973703,1771487452649,-239.81,0.00013779,2]
[405973704,1771487452658,-1000.0,0.0001378,2]
[405973705,1771487452667,-1000.0,0.00013792,2]
[405973706,1771487452677,-187.78006525,0.00013795,2]
[405973707,1771487452686,-621.78829552,0.00013797,2]
[405973708,1771487452695,-775.47832561,0.00013797,2]
[405973709,1771487452705,-251.11897888,0.00013799,2]
[405973710,1771487452714,-500.0,0.00013809,2]
[405973711,1771487452724,-150.0,0.00013827,2]
[405973712,1771487452734,-214.91490855,0.00013833,2]
[405973713,1771487452743,-150.0,0.00013833,2]
[405973714,1771487452753,-239.81,0.00013859,2]
[405973715,1771487452762,-500.0,0.00013863,2]
[405973716,1771487452771,-1000.0,0.00013876,2]
[405973717,1771487452780,-1000.0,0.00013877,2]
[405973718,1771487452789,-1000.0,0.0001389,2]
[405973719,1771487452798,-1000.0,0.00013894,2]
[405973720,1771487452807,-666.0,0.00013899,2]
[405973721,1771487452816,-9643.39114173,0.000139,2]
[405973722,1771487452826,-1000.0,0.00013907,2]
[405973723,1771487452834,-500.0,0.00013918,2]
[405973724,1771487452844,-1000.0,0.00013926,2]
[405973725,1771487452854,-239.81,0.0001394,2]
[405973726,1771487452863,-177.28481416,0.00013949,2]
[405973727,1771487452872,-150.0,0.0001395,2]
[405973728,1771487452881,-1000.0,0.00013956,2]
[405973729,1771487452889,-1000.0,0.00013957,2]
[405973730,1771487452898,-514.24307444,0.00013973,2]
[405973731,1771487452908,-670.3895273,0.00013999,2]
[405973732,1771487452917,-666.0,0.00013999,2]
[405973733,1771487452925,-666.0,0.00013999,2]
[405973734,1771487452934,-500.0,0.00014,2]
[405973735,1771487452943,-500.0,0.00014,2]
[405973736,1771487452953,-500.0,0.00014,2]
[405973737,1771487452962,-500.0,0.00014,2]
[405973738,1771487452971,-500.0,0.00014,2]
[405973739,1771487452980,-500.0,0.00014,2]
[405973740,1771487452988,-500.0,0.00014,2]
[405973741,1771487452997,-500.0,0.00014,2]
[405973742,1771487453006,-500.0,0.00014,2]
[405973743,1771487453020,-500.0,0.00014,2]
[405973744,1771487453036,-500.0,0.00014,2]
[405973745,1771487453049,-500.0,0.00014,2]
[405973746,1771487453062,-500.0,0.00014,2]
[405973747,1771487453076,-500.0,0.00014,2]
[405973748,1771487453091,-500.0,0.00014,2]
[405973749,1771487453110,-500.0,0.00014,2]
[405973750,1771487453124,-500.0,0.00014,2]
[405973751,1771487453135,-500.0,0.00014,2]
[405973752,1771487453149,-500.0,0.00014,2]
[405973753,1771487453162,-500.0,0.00014,2]
[405973754,1771487453179,-500.0,0.00014,2]
[405973755,1771487453193,-500.0,0.00014,2]
[405973756,1771487453207,-500.0,0.00014,2]
[405973757,1771487453223,-500.0,0.00014,2]
[405973758,1771487453237,-500.0,0.00014,2]
[405973759,1771487453252,-500.0,0.00014,2]
[405973760,1771487453265,-500.0,0.00014,2]
[405973761,1771487453279,-500.0,0.00014,2]
[405973762,1771487453295,-500.0,0.00014,2]
[405973763,1771487453309,-500.0,0.00014,2]
[405973764,1771487453322,-500.0,0.00014,2]
[405973765,1771487453332,-500.0,0.00014,2]
[405973766,1771487453344,-500.0,0.00014,2]
[405973767,1771487453361,-500.0,0.00014,2]
[405973768,1771487453374,-500.0,0.00014,2]
[405973769,1771487453384,-500.0,0.00014,2]
[405973770,1771487453396,-500.0,0.00014,2]
[405973771,1771487453411,-500.0,0.00014,2]
[405973772,1771487453425,-500.0,0.00014,2]
[405973773,1771487453438,-500.0,0.00014,2]
[405973774,1771487453449,-500.0,0.00014,2]
[405973775,1771487453461,-500.0,0.00014,2]
[405973776,1771487453473,-500.0,0.00014,2]
[405973777,1771487453485,-500.0,0.00014,2]
[405973778,1771487453498,-500.0,0.00014,2]
[405973779,1771487453510,-500.0,0.00014,2]
[405973780,1771487453523,-500.0,0.00014,2]
[405973781,1771487453535,-500.0,0.00014,2]
[405973782,1771487453548,-500.0,0.00014,2]
[405973783,1771487453562,-500.0,0.00014,2]
[405973784,1771487453576,-500.0,0.00014,2]
[405973785,1771487453589,-500.0,0.00014,2]
[405973786,1771487453602,-500.0,0.00014,2]
[405973787,1771487453615,-500.0,0.00014,2]
[405973788,1771487453627,-500.0,0.00014,2]
[405973789,1771487453640,-500.0,0.00014,2]
[405973790,1771487453652,-500.0,0.00014,2]
[405973791,1771487453664,-500.0,0.00014,2]
[405973792,1771487453676,-500.0,0.00014,2]
[405973793,1771487453688,-500.0,0.00014,2]
[405973794,1771487453703,-500.0,0.00014,2]
[405973795,1771487453715,-500.0,0.00014,2]
[405973796,1771487453728,-500.0,0.00014,2]
[405973797,1771487453740,-500.0,0.00014,2]
[405973798,1771487453753,-500.0,0.00014,2]
[405973799,1771487453765,-500.0,0.00014,2]
[405973800,1771487453777,-500.0,0.00014,2]
[405973801,1771487453788,-500.0,0.00014,2]
[405973802,1771487453801,-500.0,0.00014,2]
[405973803,1771487453813,-500.0,0.00014,2]
[405973804,1771487453825,-500.0,0.00014,2]
[405973805,1771487453841,-500.0,0.00014,2]
[405973806,1771487453853,-500.0,0.00014,2]
[405973807,1771487453866,-500.0,0.00014,2]
[405973808,1771487453878,-500.0,0.00014,2]
[405973809,1771487453891,-500.0,0.00014,2]
[405973810,1771487453903,-500.0,0.00014,2]
[405973811,1771487453915,-500.0,0.00014,2]
[405973812,1771487453928,-500.0,0.00014,2]
[405973813,1771487453940,-479.88,0.00014,2]
[405973814,1771487453953,-500.0,0.00014,2]
[405973815,1771487453966,-500.0,0.00014,2]
[405973816,1771487453978,-500.0,0.00014,2]
[405973817,1771487453991,-500.0,0.00014,2]
[405973818,1771487454004,-500.0,0.00014,2]
[405973819,1771487454018,-500.0,0.00014,2]
[405973820,1771487454031,-500.0,0.00014,2]
[405973821,1771487454044,-500.0,0.00014,2]
[405973822,1771487454057,-500.0,0.00014,2]
[405973823,1771487454069,-500.0,0.00014,2]
[405973824,1771487454082,-500.0,0.00014,2]
[405973825,1771487454097,-500.0,0.00014,2]
[405973826,1771487454111,-295.98,0.00014,2]
[405973827,1771487454123,-500.0,0.00014,2]
[405973828,1771487454135,-500.0,0.00014,2]
[405973829,1771487454147,-500.0,0.00014,2]
[405973830,1771487454158,-500.0,0.00014,2]
[405973831,1771487454170,-500.0,0.00014,2]
[405973832,1771487454184,-500.0,0.00014,2]
[405973833,1771487454196,-150.0,0.00014003,2]
[405973834,1771487454208,-1000.0,0.00014013,2]
[405973835,1771487454220,-150.0,0.00014015,2]
[405973836,1771487454232,-155.0,0.00014038,2]
[405973837,1771487454244,-4445.129848,0.00014039,7]
[405973838,1771487454256,-616.75172941,0.00014055,2]
[405973839,1771487454269,-8772.59006,0.00014056,7]
[405973840,1771487454280,-1000.0,0.00014077,2]
[405973841,1771487454293,-150.0,0.00014105,2]
[405973842,1771487454305,-1000.0,0.00014107,2]
[405973843,1771487454317,-1000.0,0.00014115,2]
[405973844,1771487454329,-150.0,0.00014118,2]
[405973845,1771487454341,-501.52973822,0.0001412,2]
[405973846,1771487454353,-500.0,0.0001412,2]
[405973847,1771487454364,-500.0,0.0001412,2]
[405973848,1771487454376,-500.0,0.0001412,2]
[405973849,1771487454388,-500.0,0.0001412,2]
[405973850,1771487454400,-500.0,0.0001412,2]
[405973851,1771487454412,-500.0,0.0001412,2]
[405973852,1771487454424,-500.0,0.0001412,2]
[405973853,1771487454436,-500.0,0.0001412,2]
[405973854,1771487454448,-501.36407877,0.0001412,2]
[405973855,1771487454460,-1000.0,0.00014122,2]
[405973856,1771487454472,-1000.0,0.0001413,2]
[405973857,1771487454484,-150.0,0.00014147,2]
[405973858,1771487454496,-28883.24864978,0.00014147,2]
[405973859,1771487454509,-1000.0,0.00014162,2]
[405973860,1771487454520,-1000.0,0.0001417,2]
[405973861,1771487454532,-150.0,0.00014179,2]
[405973862,1771487454544,-150.0,0.00014193,2]
[405973863,1771487454557,-1000.0,0.0001421,2]
[405973864,1771487454571,-1000.0,0.00014212,2]
[405973865,1771487454584,-1000.0,0.00014222,2]
[405973866,1771487454596,-150.0,0.00014226,2]
[405973867,1771487454606,-1000.0,0.00014239,2]
[405973868,1771487454615,-1000.0,0.00014247,2]
[405973869,1771487454625,-1001.07412879,0.00014247,2]
[405973870,1771487454862,-799.12308582,0.00014247,2]
[405973871,1771487454891,-1000.0,0.00014247,2]
[405973872,1771487454902,-1003.30376704,0.00014247,2]
[405973873,1771487454911,-1000.0,0.00014247,2]
[405973874,1771487454920,-503.54531592,0.00014247,2]
[405973875,1771487454929,-1000.0,0.00014247,2]
[405973876,1771487454939,-379.56968606,0.00014247,2]
[405973877,1771487454948,-1000.0,0.00014247,2]
[405973878,1771487454957,-1000.0,0.00014247,2]
[405973879,1771487454966,-1002.4507475,0.00014247,2]
[405973880,1771487454975,-1000.0,0.00014247,2]
[405973881,1771487454986,-1007.85167987,0.00014247,2]
[405973882,1771487454995,-1003.49517713,0.00014247,2]
[405973883,1771487455004,-200.36533569,0.00014247,2]
[405973884,1771487455013,-1000.0,0.00014247,2]
[405973885,1771487455023,-503.28614098,0.00014247,2]
[405973886,1771487455035,-504.6633067,0.00014247,2]
[405973887,1771487455044,-1003.50237615,0.00014247,2]
[405973888,1771487455053,-1000.71081967,0.00014247,2]
[405973889,1771487455061,-1001.24820967,0.00014247,2]
[405973890,1771487455071,-1004.98518027,0.00014247,2]
[405973891,1771487455080,-1000.0,0.00014247,2]
[405973892,1771487455089,-351.32118163,0.00014247,2]
[405973893,1771487455101,-1000.0,0.00014247,2]
[405973894,1771487455112,-1000.0,0.00014247,2]
[405973895,1771487455121,-1000.0,0.00014247,2]
[405973896,1771487455131,-398.58740423,0.00014247,2]
[405973897,1771487455141,-603.14127022,0.00014247,2]
[405973898,1771487455151,-175.30995591,0.00014247,2]
[405973899,1771487455160,-1000.0,0.00014247,2]
[405973900,1771487455170,-990.15817356,0.00014247,2]
[405973901,1771487455183,-501.46036829,0.00014247,2]
[405973902,1771487455192,-504.46749239,0.00014247,2]
[405973903,1771487455201,-1000.0,0.00014247,2]
[405973904,1771487455213,-503.07804053,0.00014247,2]
[405973905,1771487455223,-1003.21373635,0.00014247,2]
[405973906,1771487455232,-1003.84941121,0.00014247,2]
[405973907,1771487455241,-373.54333041,0.00014247,2]
[405973908,1771487455251,-202.37630499,0.00014247,2]
[405973909,1771487455260,-501.88124044,0.00014247,2]
[405973910,1771487455269,-504.49526467,0.00014247,2]
[405973911,1771487455278,-502.1354119,0.00014247,2]
[405973912,1771487455289,-1061.85828309,0.00014247,2]
[405973913,1771487455300,-1000.0,0.00014247,2]
[405973914,1771487455310,-350.0,0.00014253,2]
[405973915,1771487455320,-10462.2,0.00014258,2]
[405973916,1771487455329,-150.0,0.00014263,2]